bitfinex/quotes_SOLUSD_20250915
["timestamp","ask_amount","ask_price","bid_price","bid_amount"]
[1757894401932,13.59559401,240.3,240.27,0.06]
[1757894402236,13.59559401,240.3,240.19,0.7]
[1757894402432,13.59559401,240.28,240.19,0.7]
[1757894402633,13.59559401,240.28,240.07,27.79559401]
[1757894402634,13.59559401,240.26,240.07,27.79559401]
[1757894402843,0.69,240.25,240.09,13.59559401]
[1757894403025,0.69,240.25,240.1,0.7]
[1757894403838,13.59559401,240.24,240.1,0.7]
[1757894404253,3.45147386,240.29,240.1,0.7]
[1757894404430,13.59559401,240.28,240.11,13.59559401]
[1757894404631,1.6,240.22,240.12,0.7]
[1757894404957,1.6,240.22,240.12,14.9]
[1757894405158,1.6,240.22,240.13,0.7]
[1757894406057,1.6,240.22,240.14,35.39601898]
[1757894406369,1.6,240.22,240.15,0.7]
[1757894406532,2.76117909,240.3,240.15,0.7]
[1757894406533,2.76117909,240.3,240.16,13.59559401]
[1757894406834,0.69,240.33,240.18,13.59559401]
[1757894407032,0.69,240.33,240.19,0.7]
[1757894407848,13.59559401,240.32,240.19,0.7]
[1757894408056,0.69,240.33,240.19,0.7]
[1757894408257,13.59559401,240.32,240.2,35.38717733]
[1757894408436,0.69,240.31,240.21,0.7]
[1757894409139,0.72,240.33,240.21,0.7]
[1757894409338,0.03,240.33,240.21,0.7]
[1757894409536,0.72,240.33,240.21,0.7]
[1757894410229,13.59559401,240.32,240.21,4.8629725]
[1757894410535,13.59559401,240.32,240.22,0.72]
[1757894410736,2.79117909,240.33,240.22,0.72]
[1757894411074,0.03,240.33,240.22,0.72]
[1757894412253,0.03,240.33,240.21,14.57053255]
[1757894412254,0.69,240.32,240.23,14.56937101]
[1757894412552,0.69,240.31,240.23,14.56937101]
[1757894412760,0.69,240.3,240.23,14.56937101]
[1757894412964,13.62559401,240.33,240.23,14.56937101]
[1757894413150,0.69,240.29,240.23,14.56937101]
[1757894414752,0.69,240.28,240.23,4.16267743]
[1757894414942,14.28559401,240.27,240.18,0.72]
[1757894415643,14.28559401,240.27,240.19,4.16337066]
[1757894415851,13.59559401,240.25,240.19,4.16337066]
[1757894416059,0.69,240.24,240.19,4.16337066]
[1757894416253,0.69,240.23,240.16,10.40931809]
[1757894416558,0.69,240.22,240.16,10.40931809]
[1757894418061,0.69,240.21,240.15,4.16406412]
[1757894418255,0.69,240.2,240.15,4.16406412]
[1757894418439,19.80824696,240.25,240.15,0.72]
[1757894418643,13.59559401,240.23,240.15,0.72]
[1757894418854,0.69,240.24,240.15,0.72]
[1757894419445,33.33,240.24,240.15,0.72]
[1757894419765,2.76117909,240.23,240.15,0.72]
[1757894419946,3.45117909,240.23,240.15,0.72]
[1757894420260,2.76117909,240.23,240.15,0.72]
[1757894420470,2.76117909,240.23,240.16,14.57361757]
[1757894420839,3.45117909,240.23,240.16,14.57361757]
[1757894421257,0.69,240.22,240.16,14.57361757]
[1757894421568,0.69,240.22,240.16,4.16389073]
[1757894421736,0.69,240.21,240.16,4.16389073]
[1757894422244,0.69,240.2,240.16,4.16389073]
[1757894422476,0.69,240.19,240.13,10.41090682]
[1757894423565,0.7,240.17,240.13,10.41090682]
[1757894423741,0.7,240.17,240.13,11.13090682]
[1757894423941,0.7,240.17,240.13,15.29531776]
[1757894424136,0.7,240.17,240.14,0.72]
[1757894425064,0.7,240.17,240.15,4.16406412]
[1757894426966,2.76117909,240.23,240.16,0.72]
[1757894427146,0.69,240.31,240.16,0.72]
[1757894427351,0.69,240.31,240.17,13.59559401]
[1757894427551,3.45117909,240.31,240.18,0.72]
[1757894427865,0.69,240.3,240.18,0.72]
[1757894428252,0.03,240.22,240.18,0.72]
[1757894428457,0.03,240.22,240.19,14.57179732]
[1757894428654,0.03,240.22,240.2,13.59559401]
[1757894428962,0.72,240.33,240.2,14.31559401]
[1757894429163,0.72,240.33,240.21,0.72]
[1757894429359,0.03,240.33,240.22,13.59559401]
[1757894429550,0.03,240.33,240.24,13.59559401]
[1757894429966,0.03,240.33,240.25,0.72]
[1757894430352,0.03,240.33,240.27,35.37686768]
[1757894430552,0.03,240.33,240.28,0.72]
[1757894432048,0.03,240.33,240.29,0.65]
[1757894432448,0.03,240.33,240.31,4.16129166]
[1757894432849,0.03,240.33,240.32,0.65]
[1757894433476,27.4,240.43,240.32,0.65]
[1757894433659,28.1,240.43,240.32,0.65]
[1757894434650,28.1,240.43,240.33,35.3680356]
[1757894434851,28.1,240.43,240.34,0.65]
[1757894435385,27.4,240.43,240.34,0.65]
[1757894435677,0.03,240.46,240.35,13.59559401]
[1757894435848,0.03,240.46,240.37,13.59559401]
[1757894436250,0.03,240.46,240.34,46.23559401]
[1757894436462,0.7,240.45,240.35,0.65]
[1757894436645,0.7,240.45,240.36,14.56149108]
[1757894436861,0.7,240.45,240.37,0.65]
[1757894437081,0.03,240.46,240.37,0.65]
[1757894437472,0.73,240.46,240.37,0.65]
[1757894437884,0.73,240.46,240.36,35.36362121]
[1757894438187,0.7,240.45,240.36,35.36362121]
[1757894438387,0.7,240.44,240.36,14.56149108]
[1757894438594,0.68,240.43,240.33,14.56330877]
[1757894438885,0.68,240.42,240.34,0.72]
[1757894439084,0.68,240.45,240.34,0.72]
[1757894439866,0.03,240.46,240.35,13.59559401]
[1757894440206,0.03,240.46,240.37,13.59559401]
[1757894440564,0.68,240.45,240.37,14.56088529]
[1757894441489,0.03,240.46,240.38,0.72]
[1757894443185,0.03,240.46,240.39,14.55967385]
[1757894443486,0.03,240.46,240.4,0.72]
[1757894443693,0.03,240.46,240.41,13.59559401]
[1757894443990,19.44107132,240.5,240.41,13.59559401]
[1757894444285,0.03,240.51,240.43,13.59559401]
[1757894444502,0.03,240.51,240.43,27.79559401]
[1757894444681,0.03,240.51,240.45,13.59559401]
[1757894444872,0.03,240.51,240.44,0.72]
[1757894445267,0.03,240.51,240.45,14.55604074]
[1757894445495,0.03,240.51,240.46,0.72]
[1757894445878,0.03,240.51,240.47,0.72]
[1757894446276,0.03,240.51,240.48,26.72]
[1757894446800,0.03,240.51,240.49,0.72]
[1757894447302,0.03,240.51,240.5,30.87800415]
[1757894447702,0.03,240.51,240.5,44.47359816]
[1757894448038,0.03,240.51,240.5,4.87800415]
[1757894448182,0.03,240.51,240.5,4.15800415]
[1757894448368,0.03,240.51,240.5,4.87800415]
[1757894452313,0.68,240.66,240.52,26.0]
[1757894452601,0.71,240.7,240.58,26.0]
[1757894452798,0.71,240.7,240.58,59.56]
[1757894453184,0.71,240.7,240.59,14.54757055]
[1757894453385,0.71,240.7,240.59,47.38757055]
[1757894454482,0.03,240.7,240.6,0.72]
[1757894454991,0.71,240.7,240.6,0.72]
[1757894455192,0.71,240.7,240.59,47.36757055]
[1757894455497,0.69,240.69,240.59,14.54757055]
[1757894456006,0.69,240.68,240.59,4.15644873]
[1757894456210,0.69,240.67,240.57,4.15679428]
[1757894456403,0.69,240.67,240.57,14.54842833]
[1757894456782,0.03,240.7,240.6,26.0]
[1757894456991,0.03,240.7,240.61,0.71]
[1757894458193,0.03,240.7,240.62,14.54575679]
[1757894459715,0.03,240.7,240.63,0.71]
[1757894460012,0.03,240.7,240.65,26.0]
[1757894460213,0.03,240.7,240.68,4.15489446]
[1757894461988,0.1,240.76,240.73,13.59559401]
[1757894462183,0.03,240.97,240.77,4.15334136]
[1757894462184,0.69,240.88,240.77,4.15334136]
[1757894462615,0.69,240.88,240.79,13.59559401]
[1757894462929,0.72,240.92,240.79,33.06]
[1757894463227,0.69,240.85,240.75,4.15364679]
[1757894463417,0.69,240.84,240.76,26.0]
[1757894463597,0.69,240.84,240.75,4.15364679]
[1757894463802,0.72,240.82,240.73,4.1540094]
[1757894464132,0.72,240.82,240.74,26.0]
[1757894464422,0.69,240.81,240.71,4.86423442]
[1757894464724,0.03,240.82,240.69,4.15457669]
[1757894464725,0.69,240.8,240.69,4.15457669]
[1757894464901,0.69,240.79,240.69,4.15457669]
[1757894465101,0.69,240.78,240.69,4.15457669]
[1757894465299,0.69,240.77,240.75,0.06]
[1757894465613,26.0,240.81,240.75,0.06]
[1757894465614,0.69,240.76,240.75,0.06]
[1757894468422,14.28559401,240.76,240.75,0.06]
[1757894470541,17.0083418,240.76,240.75,0.06]
[1757894471796,50.0283418,240.76,240.75,0.06]
[1757894472521,17.0083418,240.76,240.75,0.06]
[1757894472728,2.72274779,240.77,240.75,0.06]
[1757894472901,59.67,240.76,240.75,0.06]
[1757894473098,62.39274779,240.76,240.75,0.06]
[1757894473531,36.39274779,240.76,240.75,0.06]
[1757894474333,49.9883418,240.76,240.75,0.06]
[1757894474838,26.0,240.64,240.56,0.66]
[1757894475039,35.81110263,240.63,240.53,0.66]
[1757894475255,2.73110263,240.62,240.53,0.66]
[1757894475758,33.1,240.61,240.53,0.66]
[1757894475935,33.1,240.61,240.45,39.59559401]
[1757894475936,33.77,240.61,240.5,0.66]
[1757894476127,26.0,240.64,240.5,0.66]
[1757894476128,2.73487395,240.6,240.5,0.66]
[1757894476327,33.1,240.6,240.5,0.66]
[1757894476521,26.67,240.64,240.51,14.55240945]
[1757894476522,33.1,240.61,240.51,14.55240945]
[1757894476722,0.67,240.68,240.54,26.0]
[1757894476922,26.67,240.68,240.55,0.66]
[1757894477118,61.83528031,240.67,240.55,0.66]
[1757894477454,35.83528031,240.66,240.55,0.66]
[1757894477655,33.1,240.66,240.55,0.66]
[1757894477855,4.15426163,240.72,240.55,0.66]
[1757894477856,33.1,240.68,240.56,13.59559401]
[1757894478087,17.01430806,240.76,240.59,26.0]
[1757894478240,33.1,240.73,240.6,0.66]
[1757894478561,2.73876162,240.72,240.6,0.66]
[1757894478850,2.73876162,240.72,240.61,14.54636132]
[1757894479157,2.73876162,240.72,240.62,0.66]
[1757894479641,33.16,240.73,240.62,0.66]
[1757894479857,2.73876162,240.72,240.62,0.66]
[1757894480155,0.67,240.71,240.62,0.66]
[1757894480455,26.0,240.7,240.61,14.54636132]
[1757894480637,2.73876162,240.69,240.61,14.54636132]
[1757894480835,2.73876162,240.69,240.62,0.66]
[1757894481039,35.91876162,240.69,240.62,0.66]
[1757894481224,33.18,240.69,240.62,0.66]
[1757894481426,0.67,240.74,240.62,0.66]
[1757894481644,26.0,240.7,240.62,0.66]
[1757894482056,3.41871405,240.77,240.64,26.0]
[1757894482263,0.67,240.76,240.65,0.66]
[1757894482447,26.0,240.74,240.61,41.20636132]
[1757894482656,3.41134405,240.73,240.61,41.20636132]
[1757894482861,3.41134405,240.73,240.63,14.5451523]
[1757894483672,3.41134405,240.73,240.59,0.06]
[1757894483673,26.0,240.7,240.59,0.06]
[1757894483864,26.0,240.66,240.59,0.06]
[1757894484042,2.74134405,240.65,240.59,14.60754328]
[1757894484245,0.67,240.67,240.59,14.60754328]
[1757894484442,36.00134405,240.68,240.59,15.26754328]
[1757894484636,2.74134405,240.67,240.59,15.26754328]
[1757894484856,2.74303882,240.67,240.59,15.26754328]
[1757894485258,0.67,240.7,240.59,14.60754328]
[1757894485259,33.26,240.69,240.59,14.60754328]
[1757894485458,10.38365843,240.77,240.59,14.60754328]
[1757894485459,0.67,240.78,240.61,13.59559401]
[1757894485665,33.93,240.81,240.68,26.0]
[1757894485944,33.93,240.81,240.69,0.66]
[1757894486164,0.03,240.82,240.69,0.66]
[1757894486369,0.03,240.82,240.7,13.59559401]
[1757894486666,0.03,240.82,240.73,26.0]
[1757894486840,0.03,240.82,240.74,14.53850626]
[1757894487040,0.03,240.82,240.79,13.59559401]
[1757894487364,0.03,240.82,240.78,26.0]
[1757894487554,0.03,240.82,240.79,0.66]
[1757894487763,0.07950373,240.8,240.79,0.66]
[1757894488098,0.08046735,240.83,240.79,1.07529963]
[1757894488445,0.08383697,240.84,240.83,26.0]
[1757894488645,0.03,240.92,240.83,0.41523066]
[1757894488870,0.03,240.92,240.88,26.0]
[1757894489179,0.03,240.92,240.89,4.81127236]
[1757894489568,0.03,240.92,240.9,0.66]
[1757894489958,19.35682373,240.99,240.94,26.0]
[1757894490271,19.35682373,240.99,240.95,0.66]
[1757894490580,19.35682373,240.99,240.92,26.0]
[1757894490780,19.35682373,240.99,240.92,26.66]
[1757894491084,19.35682373,240.99,240.93,14.52704104]
[1757894491258,20.02682373,240.99,240.93,4.15058315]
[1757894491596,20.02682373,240.99,240.91,4.15080541]
[1757894492269,0.67,240.98,240.85,36.37983201]
[1757894492475,0.67,240.98,240.87,4.15153912]
[1757894492667,26.0,240.96,240.85,4.15186316]
[1757894492893,0.67,240.95,240.85,4.15186316]
[1757894493392,0.67,240.94,240.85,4.15186316]
[1757894494066,26.0,240.96,240.85,4.15186316]
[1757894494385,26.0,240.96,240.86,0.66]
[1757894495161,33.7,240.97,240.87,14.53065968]
[1757894495389,33.7,240.97,240.88,0.66]
[1757894497387,34.37,240.98,240.89,14.52945327]
[1757894499485,0.67,240.98,240.89,14.52945327]
[1757894499674,34.33,240.98,240.89,14.52945327]
[1757894500274,0.03,240.97,240.89,14.52945327]
[1757894501372,0.03,240.97,240.9,0.69]
[1757894501573,0.03,240.97,240.91,14.52824706]
[1757894503188,0.03,240.97,240.91,35.28288572]
[1757894503484,0.03,240.97,240.92,0.69]
[1757894503890,0.03,240.97,240.94,26.0]
[1757894504377,0.03,240.97,240.91,14.52824706]
[1757894506559,0.03,240.97,240.91,4.15092773]
[1757894506755,0.71,240.96,240.91,4.15092773]
[1757894506989,0.71,240.95,240.91,4.15092773]
[1757894507289,0.03,240.97,240.91,14.52824706]
[1757894507792,0.08644141,240.92,240.89,4.15117337]
[1757894507964,0.08644141,240.92,240.89,15.21935428]
[1757894508287,0.08644141,240.92,240.89,14.52935428]
[1757894508889,0.08644141,240.92,240.89,4.84117337]
[1757894509086,0.08644141,240.92,240.89,15.21935428]
[1757894510586,0.08644141,240.92,240.9,0.69]
[1757894510973,0.08644141,240.92,240.89,14.52935428]
[1757894511174,0.08644141,240.92,240.91,0.69]
[1757894512575,0.08644141,240.92,240.91,4.84092773]
[1757894514074,0.08644141,240.92,240.91,30.84092773]
[1757894516912,0.08695511,240.94,240.91,30.84092773]
[1757894517200,0.07520518,240.95,240.94,26.0]
[1757894517380,0.07625335,240.96,240.94,30.15041089]
[1757894517999,0.10885793,241.0,240.94,40.52643811]
[1757894518305,0.10885793,241.0,240.95,0.67]
[1757894518607,0.10885793,241.0,240.94,40.52643811]
[1757894518907,0.10885793,241.0,240.94,41.19643811]
[1757894520799,0.10885793,241.0,240.94,40.52643811]
[1757894521097,0.10885793,241.0,240.95,0.67]
[1757894521272,0.10885793,241.0,240.94,40.52643811]
[1757894521474,0.10885793,241.0,240.94,41.19643811]
[1757894522817,0.10885793,241.0,240.95,14.26559401]
[1757894522978,1e-08,241.01,240.98,26.0]
[1757894523177,1e-08,241.02,240.98,59.34]
[1757894523395,1e-08,241.02,241.01,26.0]
[1757894523879,1e-08,241.02,241.01,26.67]
[1757894524081,0.72,241.12,241.01,0.67]
[1757894524283,0.72,241.11,241.05,26.0]
[1757894524507,0.72,241.1,241.05,26.0]
[1757894524705,26.0,241.17,241.05,26.0]
[1757894525011,13.59559401,241.2,241.05,26.0]
[1757894525012,0.72,241.09,241.05,26.0]
[1757894525214,0.72,241.12,241.06,14.51920683]
[1757894525509,0.72,241.11,241.06,14.51920683]
[1757894525821,0.72,241.1,241.06,14.51920683]
[1757894526308,0.72,241.13,241.06,14.51920683]
[1757894526702,10.46398308,241.22,241.07,0.67]
[1757894526703,0.72,241.18,241.07,0.67]
[1757894527100,0.72,241.18,241.09,26.0]
[1757894527311,0.72,241.18,241.1,0.67]
[1757894527690,0.72,241.18,241.1,34.07]
[1757894527889,0.72,241.21,241.13,26.0]
[1757894528098,0.72,241.21,241.13,26.67]
[1757894529101,0.1,241.22,241.14,14.51438997]
[1757894529420,0.68,241.2,241.14,14.51438997]
[1757894529709,0.1,241.22,241.14,14.51438997]
[1757894529710,0.68,241.19,241.14,4.14696856]
[1757894529895,0.68,241.18,241.14,4.14696856]
[1757894530097,0.68,241.17,241.14,4.14696856]
[1757894530304,0.68,241.16,241.14,4.14696856]
[1757894530805,0.68,241.15,241.07,10.37002275]
[1757894531006,0.68,241.14,241.07,10.37002275]
[1757894531585,0.68,241.17,241.07,11.05002275]
[1757894532018,0.68,241.17,241.07,37.05002275]
[1757894532326,0.68,241.17,241.08,0.68]
[1757894533293,0.68,241.17,241.09,14.51740013]
[1757894534501,0.68,241.17,241.1,0.68]
[1757894534709,0.68,241.2,241.1,0.68]
[1757894535103,0.68,241.2,241.09,14.51740013]
[1757894535319,0.68,241.19,241.09,14.51740013]
[1757894535488,0.68,241.18,241.09,14.51740013]
[1757894535818,0.68,241.17,241.07,4.14801998]
[1757894535998,14.27559401,241.16,241.03,10.37203612]
[1757894536303,3.42704127,241.19,241.03,10.37203612]
[1757894536304,26.0,241.14,241.03,10.37203612]
[1757894536511,0.68,241.13,241.03,10.37203612]
[1757894536695,0.68,241.12,241.03,10.37203612]
[1757894537022,26.0,241.09,241.01,4.14920542]
[1757894537196,0.68,241.08,241.01,4.14920542]
[1757894537397,0.68,241.07,240.98,0.06]
[1757894537595,0.68,241.07,240.98,4.20969965]
[1757894537795,0.68,241.06,240.98,4.20969965]
[1757894537997,0.68,241.08,240.99,0.68]
[1757894538416,4.82807213,241.08,240.98,14.58400457]
[1757894538606,14.27559401,241.07,240.98,4.20969965]
[1757894538807,0.68,241.06,240.98,4.20969965]
[1757894538992,0.68,241.05,240.98,4.20969965]
[1757894539407,0.68,241.04,240.98,4.20969965]
[1757894539993,0.68,241.03,240.98,0.06]
[1757894540222,0.68,241.02,240.98,0.06]
[1757894541022,33.36,241.03,240.98,0.06]
[1757894541225,0.68,241.01,240.98,0.06]
[1757894541613,0.68,241.0,240.98,0.06]
[1757894542003,0.68,240.99,240.98,0.06]
[1757894543595,47.61559401,240.99,240.98,0.06]
[1757894544022,34.02,240.99,240.98,0.06]
[1757894545308,60.02,240.99,240.98,0.06]
[1757894545930,73.61559401,240.99,240.98,0.06]
[1757894547609,73.61559401,240.99,240.98,1e-08]
[1757894547798,93.93144662,240.99,240.98,1e-08]
[1757894550129,93.91144662,240.99,240.98,1e-08]
[1757894551827,34.59144662,240.99,240.98,1e-08]
[1757894552120,67.89144662,240.99,240.98,1e-08]
[1757894553499,67.93144662,240.99,240.98,1e-08]
[1757894553828,71.35848789,240.99,240.98,1e-08]
[1757894554004,67.93144662,240.99,240.98,1e-08]
[1757894554511,39.59559401,240.95,240.93,0.06]
[1757894554703,14.52402688,240.98,240.93,0.06]
[1757894554704,46.93559401,240.94,240.93,0.06]
[1757894554904,47.61559401,240.94,240.93,0.06]
[1757894555120,46.91559401,240.94,240.93,0.06]
[1757894555503,47.59559401,240.94,240.93,0.06]
[1757894556122,51.7460049,240.94,240.93,0.06]
[1757894556814,51.0660049,240.94,240.93,0.06]
[1757894558411,51.7460049,240.94,240.93,0.06]
[1757894559633,18.4260049,240.94,240.93,0.06]
[1757894559836,13.59559401,240.94,240.93,0.06]
[1757894560332,46.89559401,240.94,240.93,0.06]
[1757894560648,46.87559401,240.94,240.93,0.06]
[1757894562138,13.59559401,240.94,240.93,0.06]
[1757894562315,46.87559401,240.94,240.93,0.71]
[1757894562514,46.87559401,240.94,240.93,0.06]
[1757894565438,51.7460049,240.94,240.93,0.06]
[1757894566444,13.59559401,240.94,240.93,0.06]
[1757894566743,50.9860049,240.94,240.93,0.06]
[1757894566920,13.59559401,240.94,240.93,0.06]
[1757894567237,46.83559401,240.94,240.93,0.06]
[1757894567540,51.7060049,240.94,240.93,0.06]
[1757894568129,50.9860049,240.94,240.93,0.06]
[1757894568321,46.83559401,240.94,240.93,0.06]
[1757894568526,72.81559401,240.94,240.93,0.06]
[1757894568719,72.81559401,240.94,240.93,0.71]
[1757894568920,72.81559401,240.94,240.93,0.06]
[1757894569128,76.9660049,240.94,240.93,0.06]
[1757894569637,72.81559401,240.94,240.93,0.06]
[1757894570039,77.6860049,240.94,240.93,0.06]
[1757894570833,13.59559401,240.94,240.93,0.06]
[1757894571027,50.9460049,240.94,240.93,0.06]
[1757894571235,76.9460049,240.94,240.93,0.06]
[1757894571630,72.79559401,240.94,240.93,0.06]
[1757894571820,72.79559401,240.94,240.93,0.71]
[1757894572342,39.59559401,240.94,240.93,0.71]
[1757894572644,76.9260049,240.94,240.93,0.06]
[1757894574242,39.59559401,240.94,240.93,0.06]
[1757894574421,72.77559401,240.94,240.93,0.06]
[1757894575336,72.75559401,240.94,240.93,0.71]
[1757894575537,39.59559401,240.94,240.93,0.71]
[1757894575746,72.73559401,240.94,240.93,0.71]
[1757894575939,72.73559401,240.94,240.93,0.06]
[1757894576451,26.0,240.94,240.93,4.91058315]
[1757894576655,33.14,240.94,240.93,4.91058315]
[1757894577151,33.14,240.95,240.93,15.28704104]
[1757894577455,0.03,240.99,240.94,0.7]
[1757894578541,0.03,240.99,240.95,14.52583522]
[1757894578833,0.03,240.99,240.95,4.15023863]
[1757894579035,0.03,240.99,240.96,0.7]
[1757894580729,0.03,240.99,240.95,14.52583522]
[1757894580730,0.03,240.99,240.97,4.14989417]
[1757894581162,0.03,240.99,240.98,0.7]
[1757894581345,0.03,240.99,240.97,4.14989417]
[1757894581525,33.14,240.98,240.97,4.14989417]
[1757894581860,0.03,240.99,240.97,4.14989417]
[1757894582063,33.15,240.99,240.98,0.7]
[1757894582258,0.03,240.99,240.98,0.7]
[1757894582831,0.03,240.99,240.97,4.14989417]
[1757894582832,33.17,240.99,240.95,4.85013811]
[1757894583036,33.17,240.99,240.95,4.15013811]
[1757894583337,33.18,240.98,240.96,0.7]
[1757894583552,0.03,240.99,240.96,0.7]
[1757894584040,0.03,240.99,240.97,0.7]
[1757894584550,0.03,240.99,240.98,0.7]
[1757894585048,0.03,240.99,240.98,4.84972196]
[1757894585247,33.21,240.99,240.94,4.15030886]
[1757894585423,33.21,240.99,240.94,4.85030886]
[1757894585854,33.21,240.99,240.94,4.15030886]
[1757894586041,33.21,240.99,240.95,0.7]
[1757894586243,33.21,240.99,240.96,0.7]
[1757894586558,0.03,240.99,240.97,0.7]
[1757894587263,0.03,240.99,240.98,4.14972196]
[1757894587660,0.03,240.99,240.98,4.84972196]
[1757894589270,0.03,241.02,241.01,26.0]
[1757894589656,0.03,241.02,241.01,26.67]
[1757894591270,0.03,241.02,241.01,4.14920542]
[1757894593268,0.03,241.02,240.98,14.52402688]
[1757894594466,0.71,241.01,240.98,4.14972196]
[1757894594668,0.71,241.0,240.98,4.14972196]
[1757894595050,0.03,241.02,240.98,4.14972196]
[1757894595257,0.74,241.02,240.96,14.5252324]
[1757894595657,0.74,241.02,240.96,4.1500664]
[1757894595872,0.71,241.01,240.95,0.06]
[1757894596049,0.71,241.01,240.95,4.21020615]
[1757894598269,26.0,240.99,240.95,0.06]
[1757894598567,30.85937759,241.0,240.95,0.06]
[1757894598568,13.59559401,240.97,240.95,0.06]
[1757894599074,14.30559401,240.96,240.95,0.06]
[1757894599289,33.87,240.96,240.95,0.06]
[1757894599653,26.71,240.96,240.95,0.06]
[1757894599853,59.87,240.96,240.95,0.06]
[1757894600068,26.71,240.96,240.95,0.06]
[1757894600269,33.87,240.96,240.95,0.06]
[1757894600474,0.71,240.96,240.95,0.06]
[1757894600683,33.87,240.96,240.95,0.06]
[1757894600852,26.0,240.97,240.95,0.06]
[1757894601174,33.14,240.97,240.95,4.88019457]
[1757894601376,5.11653479,241.11,240.96,0.67]
[1757894601554,33.16,241.01,240.96,0.67]
[1757894601758,33.16,241.01,240.97,0.67]
[1757894601963,0.71,241.07,240.98,0.67]
[1757894602169,33.16,241.01,240.98,0.67]
[1757894602472,33.19,241.02,240.98,0.67]
[1757894602675,33.9,241.02,240.95,14.58579116]
[1757894604973,33.18,241.01,240.95,14.58579116]
[1757894606476,0.74,241.02,240.95,14.58579116]
[1757894606679,33.14,241.0,240.95,14.58579116]
[1757894606974,33.14,241.0,240.96,0.67]
[1757894607192,0.71,240.99,240.95,14.58579116]
[1757894607478,0.71,240.98,240.95,4.21019457]
[1757894608065,33.14,241.0,240.95,4.21019457]
[1757894608785,0.71,240.99,240.95,4.21019457]
[1757894613459,33.14,241.0,240.96,0.67]
[1757894614080,0.71,240.99,240.95,4.21019457]
[1757894614568,0.71,240.98,240.95,0.06]
[1757894614887,13.62559401,241.02,240.95,0.06]
[1757894614888,33.06,240.97,240.95,0.06]
[1757894615264,0.71,240.96,240.95,0.06]
[1757894615689,33.06,240.97,240.95,4.21023863]
[1757894616287,33.04,240.96,240.95,4.21023863]
[1757894618584,33.72,240.96,240.95,0.06]
[1757894618958,51.46566041,240.96,240.95,0.06]
[1757894620080,47.31559401,240.96,240.95,0.06]
[1757894620594,51.46566041,240.96,240.95,0.06]
[1757894623168,39.59559401,240.94,240.93,0.06]
[1757894623504,25.96728532,240.94,240.93,0.06]
[1757894623792,26.64728532,240.94,240.93,0.06]
[1757894624465,30.79769621,240.94,240.93,0.06]
[1757894624669,56.79769621,240.94,240.93,0.06]
[1757894624870,34.21988748,240.94,240.93,0.06]
[1757894625406,39.00666244,240.94,240.93,0.06]
[1757894626279,18.38236897,240.94,240.93,0.06]
[1757894626480,0.68,240.98,240.93,4.21058315]
[1757894626693,33.04,240.97,240.94,0.72]
[1757894626883,33.04,240.97,240.95,0.72]
[1757894627295,33.04,240.97,240.96,0.72]
[1757894627681,33.04,240.97,240.93,0.06]
[1757894627998,33.04,240.97,240.93,4.21053944]
[1757894628372,33.04,240.97,240.94,0.72]